Cogmind - Beta 15 @@@ ROGUE MODE // 2025.05.06 @ 14:36:46 // Winter2019/RPGLIKE Player: DeepestRoots Result: Destroyed by T7-X6L(E) with Overtuned Barrage Gun Performance ------------- Evolutions (0) 0 Regions Visited (3) 600 Robots Destroyed (5) 25 Value Destroyed (34) 34 Prototype IDs (1) 20 Alien Tech Used (0) 0 Bonus (300) 300 TOTAL SCORE: 979 Bonus ------- Registered with UFD 300 Cogmind --------- Core Integrity 0/600 Matter 300/300 Energy 98/100 System Corruption 0% Temperature Cool (24) Movement Core (50) Location -9/Scraptown Parts ------- > --- POWER (1) -------- (None) > --- PROPULSION (2) --- (None) > --- UTILITY (3) ------ (None) > --- WEAPON (3) ------- (None) > --- INVENTORY (1) ---- Assault Rifle Peak State ------------ > --- POWER ------------ Improved Deuterium Engine > --- PROPULSION ------- Aluminum Leg Aluminum Leg > --- UTILITY ---------- Signal Interpreter Seismic Detector Jamming Amplifier > --- WEAPON ----------- Proton Cannon Light Assault Rifle Remote Datajack > --- INVENTORY -------- Assault Rifle [Rating: 23] Favorites ----------- Power Improved Deuterium Engine Engine Improved Deuterium Engine Propulsion Aluminum Leg Leg Aluminum Leg Utility Seismic Detector Device Seismic Detector Processor Signal Interpreter Protection Medium Reactive Plating Weapon Light Assault Rifle Energy Cannon Proton Cannon Ballistic Gun Light Assault Rifle Special Weapon Remote Datajack Build | -11 -10 -10 -9 ------- Run | Yrd Mat Sub Scr Slots Evolved 5 | 3 . 1 1 Power . | . . . . Propulsion 1 | 1 . . . Utility 2 | 1 . . 1 Weapon 2 | 1 . 1 . Parts Attached 16 | 8 . 1 7 Power 2 | 1 . . 1 Engine 2 | 1 . . 1 Core . | . . . . Reactor . | . . . . Propulsion 2 | 2 . . . Treads . | . . . . Leg 2 | 2 . . . Wheel . | . . . . Hover . | . . . . Flight . | . . . . Utility 7 | 3 . . 4 Device 4 | 3 . . 1 Storage . | . . . . Processor 2 | . . . 2 Hackware . | . . . . Protection 1 | . . . 1 Artifact . | . . . . Weapon 5 | 2 . 1 2 Energy Gun . | . . . . Energy Cannon 1 | . . . 1 Ballistic Gun 3 | 2 . 1 . Ballistic Cannon . | . . . . Launcher . | . . . . Special Weapon 1 | . . . 1 Impact Weapon . | . . . . Slashing Weapon . | . . . . Piercing Weapon . | . . . . Special Melee Weapon . | . . . . Unidentified Prototypes . | . . . . Parts Lost . | . . . . Power . | . . . . Propulsion . | . . . . Utility . | . . . . Weapon . | . . . . Highest Loss Streak . | . . . . To Critical Strikes . | . . . . Average Backups . | . 1 1 1 Power . | . . . . Propulsion . | . . . . Utility . | . . . . Weapon . | . 1 1 . Tool/Special . | . . . . Unused Backups 1 | . . . 1 Power . | . . . . Propulsion . | . . . . Utility . | . . . . Weapon 1 | . . . 1 Tool/Special . | . . . . Average Slot Usage (%) 98 | . 100 100 98 Engine 11 | . 14 13 11 Leg 22 | . 28 27 21 Device 19 | . 28 27 17 Processor 7 | . . . 8 Protection 4 | . . . 5 Energy Cannon 7 | . . . 9 Ballistic Gun 18 | . 28 30 15 Special Weapon 5 | . . . 7 Peak Build Rating 23 | 9 7 9 23 Average Rating 16 | 5 7 7 18 On Entrance 5 | . 7 7 9 Naked Turns 17 | . . . 17 Heaviest Build 43 | 10 10 14 43 Greatest Support 20 | 20 20 20 20 Greatest Overweight (x) 4 | 2 . . 4 Average Overweight (x) . | . . . . Largest Inventory Capacity 1 | 1 1 1 1 Average Capacity . | . 1 1 1 Most Carried 1 | 1 1 1 1 Average Carried . | . 1 1 . Final Capacity 1 | 1 1 1 1 Final Carried 1 | 1 1 1 1 Class Distribution -------------------- 78% | Gunner 21% | Mutant Dominant Class ---------------- Mutant | -10/Materials Mutant | -10/Subcaves Gunner | -9/Scraptown Resources | -11 -10 -10 -9 ----------- Run | Yrd Mat Sub Scr Matter Collected 449 | 316 12 46 75 Remotely 253 | 140 12 46 55 Salvage Created 242 | 172 . . 70 Parts 18 | 16 . . 2 Haulers Intercepted . | . . . . Recyclers Shooed . | . . . . Parts Field Recycled . | . . . . Retrieved Matter . | . . . . Parts Self-Destructed 2 | . . . 2 Prevented . | . . . . Kills | -11 -10 -10 -9 ------- Run | Yrd Mat Sub Scr Combat Hostiles Destroyed . | . . . . Classes Destroyed 2 | 2 . . . Tunneler 4 | 4 . . . Recycler 1 | 1 . . . Best Kill Streak 4 | 4 . . . Combat Bots Only . | . . . . Max Kills in Single Turn 1 | 1 . . . Gunslinging . | . . . . Exploded . | . . . . Melee . | . . . . Uniques/NPCs Destroyed . | . . . . Combat | -11 -10 -10 -9 -------- Run | Yrd Mat Sub Scr Hostile Shots Fired 112 | . 22 4 86 Missed 39 | . 12 . 27 Hits 73 | . 10 4 59 Melee 23 | . . . 23 Projectile 50 | . 10 4 36 Critical Strikes 1 | . . . 1 Damage Taken 866 | . 85 77 704 Core 744 | . 67 61 616 Absorbed by Shields . | . . . . Redirected to Core 280 | . 56 61 163 Core Remaining (%) 100 | 100 . . . Volleys Fired 26 | 9 8 4 5 Largest 2 | 2 2 2 1 Hottest 75 | 40 40 40 75 Shots Fired 47 | 18 16 8 5 Gun 42 | 18 16 8 . Cannon 4 | . . . 4 Launcher . | . . . . Special 1 | . . . 1 Kinetic 42 | 18 16 8 . Thermal . | . . . . Explosive . | . . . . Electromagnetic 4 | . . . 4 Robot Hit Streak 8 | 7 8 8 4 Robot Miss Streak 2 | 1 2 . 1 Penetration Max . | . . . . Secondary Targets . | . . . . Shots Hit Robots 36 | 13 11 8 4 Core Hits 12 | 6 2 2 2 Critical Kills . | . . . . Critical Parts Destroyed . | . . . . Critical Strikes . | . . . . Melee Attacks . | . . . . Impact . | . . . . Slashing . | . . . . Piercing . | . . . . Sneak Attacks . | . . . . Combat Hostiles . | . . . . Follow-up Attacks . | . . . . Damage Inflicted 570 | 146 126 81 217 Guns 341 | 146 114 81 . Cannons 105 | . . . 105 Explosions 105 | . . . 105 Melee . | . . . . Ramming 19 | . 12 . 7 Kinetic 341 | 146 114 81 . Thermal 105 | . . . 105 Explosive . | . . . . Electromagnetic 105 | . . . 105 Impact . | . . . . Slashing . | . . . . Piercing . | . . . . Highest Corruption . | . . . . Average Corruption . | . . . . Corruption Purged . | . . . . Corruption Blocked . | . . . . Overload Shots . | . . . . Overflow Damage 14 | . . . 14 Projectiles 14 | . . . 14 Explosions . | . . . . Melee . | . . . . Knockbacks . | . . . . Impact . | . . . . Kinetic . | . . . . Secondary . | . . . . Self-Inflicted Damage 47 | . . . 47 Shots 1 | . . . 1 Rammed . | . . . . Targets Rammed 6 | . 3 . 3 Kicked 6 | . 3 . 3 Crushed . | . . . . Highest Temperature 205 | . 6 . 205 Average Temperature 98 | . 6 . 108 Received Heat Transfer 204 | . 12 24 168 Siege Activations . | . . . . Martial Activations . | . . . . Shielding Activations . | . . . . Robots Disrupted . | . . . . Combat Hostiles . | . . . . Robots Corrupted . | . . . . Combat Hostiles . | . . . . Parts Fried . | . . . . Impact Corruptions . | . . . . Robots Melted . | . . . . Combat Hostiles . | . . . . Parts Melted . | . . . . Heat Transferred 150 | . . . 150 Parts Sabotaged . | . . . . Parts Stolen 4 | . . . 4 Parts Stripped . | . . . . Power Chain Reactions 1 | . . . 1 Alert | -11 -10 -10 -9 ------- Run | Yrd Mat Sub Scr Maximum Alert Level . | . . . . Low Security (%) 100 | 100 100 . . Level 1 . | . . . . Level 2 . | . . . . Level 3 . | . . . . Level 4 . | . . . . Level 5 . | . . . . High Security . | . . . . Max Security . | . . . . Peak Influence 15 | 15 6 . . Initial 6 | . 6 . . Average 2 | 3 . . . Influence Increases 35 | 25 . . 10 Destroy 0b10 Robot/NC 35 | 25 . . 10 Influence Decreases 31 | 15 10 . 6 Entered New Map 4 | . 4 . . Time Decay 27 | 15 6 . 6 Squads Dispatched . | . . . . Investigation . | . . . . Extermination . | . . . . Reinforcement . | . . . . Assault . | . . . . Garrison . | . . . . Intercept . | . . . . Searches Triggered . | . . . . Construction Impeded . | . . . . Haulers Reinforced . | . . . . Active Scanning Responses . | . . . . Cargo Convoy Interrupts . | . . . . Stealth | -11 -10 -10 -9 --------- Run | Yrd Mat Sub Scr Distress Signals 1 | . 1 . . Communications Jammed . | . . . . Distress Signals . | . . . . Times Spotted 23 | . 6 2 15 Peak Tracking Total 17 | . 3 2 17 Tactical Retreats . | . . . . Traps | -11 -10 -10 -9 ------- Run | Yrd Mat Sub Scr Traps Triggered . | . . . . Indirectly . | . . . . Trap Hack Attempts . | . . . . Triggered . | . . . . Disarmed . | . . . . Reprogrammed . | . . . . Reused . | . . . . Traps Extracted . | . . . . Installed . | . . . . Triggered . | . . . . Machines | -11 -10 -10 -9 ---------- Run | Yrd Mat Sub Scr Machines Disabled . | . . . . Max in Single Turn . | . . . . Machines Repaired . | . . . . Machines Dismantled . | . . . . Machines Sabotaged . | . . . . Overloaded Fab Kills . | . . . . Hacking | -11 -10 -10 -9 --------- Run | Yrd Mat Sub Scr Machines Accessed . | . . . . Terminals . | . . . . Fabricators . | . . . . Repair Stations . | . . . . Recycling Units . | . . . . Scanalyzers . | . . . . Garrison Access . | . . . . Total Hacks . | . . . . Successful . | . . . . Failed . | . . . . Catastrophic . | . . . . Database Lockouts . | . . . . Manual . | . . . . Terminals . | . . . . Fabricators . | . . . . Repair Stations . | . . . . Recycling Units . | . . . . Scanalyzers . | . . . . Garrison Access . | . . . . Terminal Hacks . | . . . . Fabricator Hacks . | . . . . Repair Station Hacks . | . . . . Recycling Unit Hacks . | . . . . Scanalyzer . | . . . . Garrison Access Hacks . | . . . . Unauthorized Hacks . | . . . . Terminals . | . . . . Fabricators . | . . . . Repair Stations . | . . . . Recycling Units . | . . . . Scanalyzers . | . . . . Garrison Access . | . . . . Data Cores Recovered . | . . . . Used . | . . . . Hacking Detections . | . . . . Full Trace Events . | . . . . Feedback Events . | . . . . Feedback Blocked . | . . . . Robot Schematics Acquired . | . . . . Robots Built . | . . . . Authchips . | . . . . Time . | . . . . Total Robot Build Rating . | . . . . Part Schematics Acquired . | . . . . Parts Built . | . . . . Authchips . | . . . . Time . | . . . . Total Part Build Rating . | . . . . Parts Repaired . | . . . . Time . | . . . . Parts Recycled . | . . . . Recycled Matter . | . . . . Retrieved Matter . | . . . . Retrieved Components . | . . . . Parts Scanalyzed . | . . . . Part Schematics Acquired . | . . . . Parts Damaged . | . . . . Bothacking | -11 -10 -10 -9 ------------ Run | Yrd Mat Sub Scr Used RIF Installer . | . . . . Robots Hacked 1 | . . . 1 Non-combat . | . . . . Combat 1 | . . . 1 Robot Hacks Applied 1 | . . . 1 parse_system 1 | . . . 1 Relay Couplers Released . | . . . . Fabnet Peak Effective % . | . . . . Robots Rewired . | . . . . Allies Hacked . | . . . . Hacks Repelled . | . . . . Allies | -11 -10 -10 -9 -------- Run | Yrd Mat Sub Scr Total Allies . | . . . . Largest Group . | . . . . Highest-Rated Group . | . . . . Highest-Rated Ally . | . . . . Total Orders . | . . . . Ally Attacks . | . . . . Total Damage . | . . . . Kills . | . . . . Allies Corrupted . | . . . . Allies Melted . | . . . . Intel | -11 -10 -10 -9 ------- Run | Yrd Mat Sub Scr Active Infowar (turns) 2343 | 34 136 254 1919 Terrain 28 | 28 . . . Seismic 2315 | 6 136 254 1919 Robot Analysis Total . | . . . . Derelict Logs Recovered 2 | . . 1 1 Drone Launches . | . . . . Drone Recoveries . | . . . . Exploration | -11 -10 -10 -9 ------------- Run | Yrd Mat Sub Scr Turns Passed 2416 | 90 136 254 1936 Spaces Moved 1333 | 47 88 146 1052 Core 50 | 14 . . 36 Treads . | . . . . Legs 1283 | 33 88 146 1016 Wheels . | . . . . Hover . | . . . . Flight . | . . . . Fastest Speed 50 | 50 120 120 50 Average Speed 167 | 101 120 120 181 Slowest Speed 260 | 150 120 120 260 Overloaded Moves . | . . . . Propulsion Burnouts . | . . . . Robots Hopped . | . . . . Potential Cave-ins . | . . . . Cave-ins Triggered . | . . . . Exploration Rate (%) 29 | 4 30 9 75 Regions Visited 3 Branch Regions 2 Pre-discovered Areas 1 | . . . 1 Known Exits Taken . | . . . . Unknown Exits Taken 3 | 1 1 1 . Scrap Searched 6 | . . . 6 Spaces Dug . | . . . . Terrain Destroyed . | . . . . Melee . | . . . . Projectile . | . . . . AOE . | . . . . Terrain Rammed . | . . . . Walls Destroyed . | . . . . Machines Disabled . | . . . . Actions | -11 -10 -10 -9 --------- Run | Yrd Mat Sub Scr Total 1463 | 69 103 217 1074 Wait 69 | 4 4 61 . Move 1330 | 46 87 145 1052 Hop . | . . . . Pick Up 2 | 1 . . 1 Fast Attach 13 | 8 . 1 4 Attach . | . . . . Detach 1 | . . . 1 Swap 3 | . . . 3 Drop 6 | 1 . . 5 Fire 26 | 9 8 4 5 Melee . | . . . . Ram . | . . . . Kick 6 | . 3 . 3 Crush . | . . . . Escape Stasis . | . . . . Rewire . | . . . . Trap . | . . . . Miscellaneous 7 | . 1 6 . Route ------- -11/Scrapyard -10/Materials (discovered 3 exits: [*Mat] / [*Min] / [*Sub]) -10/Subcaves -9/Scraptown (discovered 1 exit: *Fac) History --------- Turn | Location | Event 3 | -11/Scrapyard | Upgraded with Propulsion slot (x1) 3 | -11/Scrapyard | Upgraded with Utility slot (x1) 3 | -11/Scrapyard | Upgraded with Weapon slot (x1) 5 | -11/Scrapyard | Discovered new exit (range 18) 91 | -11/Scrapyard | Entered Materials 92 | -10/Materials | Met a group of wandering Federalists 174 | -10/Materials | Discovered new exit (range 16) 205 | -10/Materials | Discovered new exit (range 12) 216 | -10/Materials | Discovered new exit (range 10) 227 | -10/Materials | Entered Subcaves 228 | -10/Subcaves | Continued accompanying wandering Federalists (4) 235 | -10/Subcaves | Learned Materials interactive machine intel 315 | -10/Subcaves | Build established: Mutant 400 | -10/Subcaves | Upgraded with Weapon slot (x1) 464 | -10/Subcaves | Wandering Federalist uncovered a shortcut to Scraptown 481 | -10/Subcaves | Entered Scraptown 483 | -9/Scraptown | Reached level 2 592 | -9/Scraptown | Upgraded with Utility slot (x1) 657 | -9/Scraptown | Scanned Subdweller tech in exchange for log data 661 | -9/Scraptown | Learned location of Testing (-3) 793 | -9/Scraptown | Discovered new exit (range 5) 885 | -9/Scraptown | Identified exit to Factory 937 | -9/Scraptown | Visited Spacefarers 961 | -9/Scraptown | Visited Red Mages 975 | -9/Scraptown | Visited Bundlers 1046 | -9/Scraptown | Build established: Gunner 1074 | -9/Scraptown | Visited Cave Peace 1506 | -9/Scraptown | Visited UFD Registry 1545 | -9/Scraptown | Visited The Evicted 1590 | -9/Scraptown | Visited Symbiants 1642 | -9/Scraptown | Visited Assassins FH 2175 | -9/Scraptown | Registered with UFD as "Metalbucket" 2323 | -9/Scraptown | Visited Science Testing Area 2370 | -9/Scraptown | Attacked by Scraptown defenders 2400 | -9/Scraptown | Released all parts (3) 2413 | -9/Scraptown | Core integrity fell below 50% 2416 | -9/Scraptown | Core integrity fell below 20% 2417 | -9/Scraptown | Destroyed by T7-X6L(E) with Overtuned Barrage Gun Last Messages --------------- 02379_ DO-Y3P(r) follow-up attacks with Ripteeth. 02380_ Dropped Med. Reactive Plating. 02381_ Dropped Proton Cannon. 02381_ SD-YRN(r) follow-up attacks with Ripteeth. 02385_ Kicked 28-EL6(x) out of the way. 02386_ Kicked 4I-FWC(j). 02387_ Kicked 4I-FWC(j) out of the way. 02388_ Lgt. Treads fries itself beyond repair. 02389_ Machine disabled. 02395_ Aluminum Leg ripped off. 02398_ Remote Datajack ripped off. 02400_ Released Seismic Detector. 02400_ Released Signal Interpreter. 02400_ Released Imp. Deuterium Engine. 02405_ Slug penetrates Machine. 02405_ Machine disabled. 02412_ DO-Y3P(r) follow-up attacks with Ripteeth. 02415_ Machine disabled. 02415_ Penetrated by Slug. 02417_ Slug penetrates Machine. Map ----- +----------------------------------------------------+ | ?????????????????????????????????????????????????? | | ?????????????????????????????????????????????????? | | ?????????????????????????????????????????????????? | | ?????????????????????????????????????????????????? | | ?????????????????????????????????????????????????? | | ?????????????????????????????????????????????????? | | ?????????????????????????????????????????????????? | | ?????????????????????????????????????????????????? | | ?????????????????????????????????????????????????? | | ????????????????????? ???????????????????????????? | | ????????????????????# ??? ???????????????????????? | | ????????????????????#c??? ???????????????????????? | | ????????????????????# ?? ???????????????????????? | | ????????????????????# ??"???????????????????????? | | ??????????????#?????# ?? ???????????????????????? | | ### ##???????## ##### ## #??????????????????????? | | """ """"????""" """"" "" "??????????????????????? | | ????? "#?????????????????????? | | ???? "#?????????????????????? | | ????? E "#?????????????????????? | | ?????? "#?????????????????????? | | ??????? ?????????????????????? | | """""""?????????""""" "#?????????????????????? | | "???????????????"""""ggE "#?????????????????????? | | ??????????????????#"" E #?????????????????????? | | ?????????????????#"" @ #?????##??????????????? | | ?????????????????#"" E r"#????""#??????????????? | | ??????????????????#"" r #??? "#??????????????? | | ?????????????###" #?? "#??????????????? | | ?????####### #"" ## "#??????????????? | | ""????? j g !"#??????????????? | | "" ???? ## "#??????????????? | | ?????####### #" "#?? "#??????????????? | | ????????????#?#"" "#???"" #??????????????? | | " ""?????????????#"" p "#????#????????????????? | | ?????????????#"" "#?????????????????????? | | ??????????????#"" #?????????????????????? | | # ################"" "#???????#?????????????? | | """"""""""""""""""""" "## #?????????????? | | """""""""""""""""""" ["???????????????? | | "## ["???????????????? | | E "#?? [["??????????????? | | "#???"?!!#?????????????? | | #???????#?????????????? | | *! #????????????????????? | | """"" "" """""" """""" ##????????????????????? | | ##### ########### ###### #?????????????????????? | | ??? ???????? ???# #?????????????????????? | | ? ????? #??# #?????????????????????? | | &" "" ""???# #??? #?????????????????????? | +----------------------------------------------------+ Best States ------------- Heat Dissipation 25 Energy Generation 16 Energy Capacity 290 Matter Stores 300 Matter Capacity 300 Sight Range 18 Terrain Scan Range 16 Terrain Scan Density 10 Armor Coverage 225 Resistance: KI 30 Evasion (%) 55 Item Schematics ----------------- None Robot Schematics ------------------ None Fabricated ------------ Nothing Repaired ---------- Nothing Alien Tech Used ----------------- None Achievements -------------- None Challenges ------------ None RPGLIKE | -11 -10 -10 -9 --------- Run | Yrd Mat Sub Scr Levels Raised 1 | . . . 1 XP Earned 4650 | 3000 . 1000 650 XP Spent 3750 | 2150 . 800 800 Upgrades 8 | 6 . 1 1 Propulsion Slot 1 | 1 . . . Utility Slot 2 | 1 . . 1 Weapon Slot 2 | 1 . 1 . Inventory Capacity 1 | 1 . . . Sight Range 2 | 2 . . . Protomatter Created 49 | . . . 49 Integrity Restored 144 | . 19 125 . Core 128 | . 19 109 . Parts 16 | . . 16 . Protomatter Decayed 51 | . 51 . . Game ------ Seed GodDisassembledShearcannon Manual? 0 Play Time 00:20:27 Cumulative 980.2 hours Start 2025.05.06 @ 14:17:33 End 2025.05.06 @ 14:36:46 Sessions 1 Manual Loads 0 Difficulty Rogue Special Mode Winter2019/RPGLIKE Game No. 77 Rogue 17 Adventurer 46 Explorer 14 Win Type - Total 49 Types 26/4/10/1/1/2/0/3/2/0 Lore% 82 Gallery% 86 Achievement% 80 Wizard Run 0 Options --------- Layout 0 ASCII 0 Keyboard 1 Movement Numpad Keybinds 0 Fullscreen 2 Font 18/SmallcapsGlow Map View 76x50 Zoom Use 0% Tactical HUD 1 Map Filters NONE Filters NONE Steam 0 RUN: 1d8f4cda-8cd4-4bf2-816b-2c5a82855273